bitfinex/quotes_ETHUSD_20220218
["timestamp","ask_amount","ask_price","bid_price","bid_amount"]
[1645174660957,12.80642768,2945.1,2945.0,24.66244145]
[1645174661162,12.80642768,2945.1,2945.0,17.88937838]
[1645174661163,23.07142768,2945.1,2945.0,17.88937838]
[1645174661356,43.11142768,2945.1,2944.4,0.00324606]
[1645174661561,43.11142768,2945.1,2942.1,3.05890177]
[1645174661562,0.85003,2943.5,2942.1,1.1817]
[1645174661758,0.85003,2943.5,2942.0,3.46728051]
[1645174661759,6.532,2943.4,2942.0,3.46728051]
[1645174661956,1.028,2942.7,2942.3,1.08132569]
[1645174662158,5.804,2943.4,2942.4,6.0]
[1645174662159,1.028,2942.6,2942.4,6.0]
[1645174662358,0.64,2943.4,2943.0,0.51798012]
[1645174662856,1.55799,2943.3,2943.0,0.51798012]
[1645174663111,2.60008027,2943.3,2943.0,0.51798012]
[1645174663305,1.55799,2943.3,2943.0,0.51798012]
[1645174664206,1.55799,2943.3,2943.0,0.52098408]
[1645174664409,2.55799,2943.3,2943.0,0.52098408]
[1645174664607,1.55799,2943.3,2943.0,0.52098408]
[1645174664807,1.25798,2943.3,2943.0,0.52098408]
[1645174665007,0.408,2943.3,2943.0,0.51798012]
[1645174665209,0.34,2943.2,2943.0,0.51798012]
[1645174665508,0.34,2943.2,2943.0,0.52098408]
[1645174665509,0.748,2943.2,2943.0,0.52098408]
[1645174666009,0.3,2943.1,2943.0,0.52098408]
[1645174666207,0.3,2943.1,2943.0,0.51798012]
[1645174666409,0.708,2943.1,2943.0,0.51798012]
[1645174666607,0.708,2943.1,2943.0,0.52098412]
[1645174666846,1.72984198,2943.1,2943.0,0.52098412]
[1645174667444,1.72984198,2943.1,2943.0,0.51798012]
[1645174668250,2.06984198,2943.1,2943.0,0.51798012]
[1645174668652,5.46984198,2943.1,2943.0,0.51798012]
[1645174670255,5.41984198,2943.1,2943.0,0.51798012]
[1645174671001,5.41984198,2943.1,2943.0,0.46798012]
[1645174672202,4.398,2943.1,2943.0,0.46798012]
[1645174673206,5.25673391,2943.1,2943.0,0.46798012]
[1645174676854,5.34179871,2943.1,2943.0,0.46798012]
[1645174686118,5.5850648,2943.0,2942.9,0.00302139]
[1645174686322,6.2930648,2943.0,2942.9,0.00302139]
[1645174686519,6.6330648,2943.0,2942.9,0.00302139]
[1645174686718,1.1330648,2943.0,2942.3,7.31208819]
[1645174686920,0.8501,2942.9,2942.2,1.2043]
[1645174687226,0.7930648,2942.8,2942.3,0.0120881]
[1645174687423,0.0850648,2942.5,2942.3,0.0120881]
[1645174687621,0.4930648,2942.4,2942.3,0.0120881]
[1645174687820,0.7930648,2942.4,2942.3,0.0120881]
[1645174688021,0.7930648,2942.4,2941.6,9.7662]
[1645174688226,0.0850648,2942.2,2941.8,0.01151864]
[1645174688423,0.0850648,2942.0,2941.8,0.01151864]
[1645174688623,1.15028,2942.3,2941.8,0.01151864]
[1645174688624,0.4930648,2941.9,2941.8,0.01151864]
[1645174688823,0.3,2942.1,2941.9,0.9861296]
[1645174689024,1.10003111,2942.0,2941.9,0.9861296]
[1645174689250,2.10803111,2942.0,2941.9,0.9861296]
[1645174689454,2.10803111,2942.0,2941.9,0.98901215]
[1645174689858,2.44803111,2942.0,2941.9,0.98901215]
[1645174690255,2.44803111,2942.0,2941.9,0.9861296]
[1645174691761,3.5,2941.9,2940.6,6.7098]
[1645174691960,3.5,2941.8,2940.3,3.88923868]
[1645174692257,0.85061,2941.3,2940.3,3.88923868]
[1645174692465,0.408,2941.2,2940.3,3.88923868]
[1645174692859,1.048,2941.2,2940.3,3.88923868]
[1645174693118,1.048,2941.2,2940.7,0.88689756]
[1645174694317,1.048,2941.2,2940.8,0.17]
[1645174694517,1.048,2941.2,2940.7,0.88689756]
[1645174695022,1.348,2941.2,2940.7,0.88689756]
[1645174696620,1.348,2941.2,2940.8,0.00325077]
[1645174697650,1.348,2941.2,2940.7,0.88689756]
[1645174697847,1.348,2941.2,2940.9,0.00325073]
[1645174698250,1.048,2941.2,2940.9,0.00325073]
[1645174698854,2.23927439,2941.2,2940.3,3.88923868]
[1645174699052,2.23927439,2941.2,2940.9,0.00325069]
[1645174699453,2.23927439,2941.2,2940.3,3.85549407]
[1645174699951,2.23927439,2941.2,2940.4,1.45014137]
[1645174699952,0.89339905,2940.6,2940.4,1.45014137]
[1645174700154,0.89339905,2940.6,2940.0,0.87054686]
[1645174700352,0.89339905,2940.6,2940.1,1.45017081]
[1645174700353,0.34,2940.5,2940.1,1.45017081]
[1645174700797,0.34,2940.5,2940.0,1.45017081]
[1645174700997,0.34,2940.5,2939.9,0.17]
[1645174701218,0.34,2940.5,2940.0,1.45025607]
[1645174701596,0.34,2940.5,2940.1,0.00257185]
[1645174702398,0.34,2940.5,2940.1,3.5]
[1645174702600,0.34,2940.5,2940.2,1.45282788]
[1645174702804,0.66268639,2941.8,2940.4,6.0]
[1645174702805,1.07068639,2941.8,2940.4,6.0]
[1645174703001,1.07068639,2941.8,2940.5,4.95025607]
[1645174703203,1.07068639,2941.8,2940.6,1.45025607]
[1645174703405,1.07068639,2941.8,2940.7,3.5]
[1645174703603,1.003515,2941.7,2941.1,1.03115258]
[1645174703905,1.003515,2941.7,2940.8,2.7634]
[1645174704104,0.00230551,2941.3,2940.9,3.5]
[1645174704855,1.603515,2941.7,2940.8,2.7634]
[1645174705051,1.603515,2941.7,2940.8,3.82028418]
[1645174705253,0.00230551,2941.2,2940.8,3.82028418]
[1645174705854,0.00230551,2941.2,2940.9,3.5]
[1645174706054,1.603515,2941.7,2940.8,3.82028418]
[1645174706253,0.00230551,2941.1,2940.8,3.82028418]
[1645174706654,0.00230551,2941.1,2940.9,3.5]
[1645174706655,5.51e-06,2941.1,2940.9,3.5]
[1645174706855,5.51e-06,2941.1,2941.0,1.44981495]
[1645174707053,5.51e-06,2941.1,2941.0,6.11541495]
[1645174707256,0.76780284,2942.5,2941.0,2.61541495]
[1645174707454,0.76780284,2942.5,2941.1,1.44981495]
[1645174707655,0.85022,2942.4,2941.1,1.44981495]
[1645174707854,0.864762,2942.0,2941.4,1.08665136]
[1645174708707,1.164762,2942.0,2941.4,1.08665136]
[1645174708907,1.464762,2942.0,2941.0,4.6656]
[1645174709107,1.164762,2942.0,2941.1,1.44979093]
[1645174709305,0.864762,2942.0,2941.2,3.5]
[1645174709709,0.85021,2942.4,2941.3,1.44974365]
[1645174709911,5.0,2943.3,2942.2,1.54624956]
[1645174709912,1.70007,2943.3,2942.2,1.54624956]
[1645174710109,0.5,2943.9,2942.3,5.11908775]
[1645174710308,0.408,2944.1,2942.4,2.44925442]
[1645174710507,0.408,2944.1,2942.5,3.6698]
[1645174711007,0.408,2944.1,2942.9,0.95743908]
[1645174711008,0.9657796,2943.5,2942.9,0.95743908]
[1645174711209,0.00229976,2943.4,2942.5,3.5]
[1645174711407,0.00229976,2943.4,2942.6,1.44915551]
[1645174711853,0.00229976,2943.4,2942.7,4.8293]
[1645174712054,3.81430451,2945.4,2942.8,6.44915551]
[1645174712254,1.12299203,2944.0,2943.4,1.0351099]
[1645174712453,1.12299203,2944.0,2943.3,0.2899]
[1645174712654,1.27935683,2944.0,2943.3,0.2899]
[1645174713457,0.00229976,2943.8,2942.9,3.6698]
[1645174713657,1.13905173,2943.5,2942.8,10.7883]
[1645174713856,1.43905173,2943.5,2942.5,3.5]
[1645174714057,1.43905173,2943.5,2942.6,0.1698]
[1645174714257,1.43905173,2943.5,2942.8,3.5]
[1645174714856,0.00229976,2943.2,2942.8,4.50411429]
[1645174715699,4.83905173,2943.5,2942.8,4.50411429]
[1645174715904,0.00229976,2943.1,2942.8,4.50411429]
[1645174716101,0.00229976,2943.1,2942.8,3.5]
[1645174716302,0.00229976,2943.1,2942.6,3.6698]
[1645174716502,0.00229976,2943.1,2942.8,3.5]
[1645174716905,3.4,2943.5,2942.8,3.5]
[1645174717103,0.00229976,2943.1,2942.9,1.0]
[1645174717503,0.00229976,2943.1,2943.0,3.5]
[1645174717906,0.00229976,2943.1,2942.8,3.5]
[1645174718111,3.4,2943.5,2943.0,1.17885565]
[1645174718313,0.00229976,2943.2,2942.9,3.5]
[1645174718514,0.00229976,2943.2,2942.7,1.1595]
[1645174718710,0.00229976,2943.2,2942.8,3.5]
[1645174719355,3.7,2943.5,2942.8,3.5]
[1645174719553,0.00181402,2943.1,2942.8,3.5]
[1645174719752,0.00181402,2943.1,2942.7,1.1595]
[1645174720352,0.00181402,2943.1,2943.0,1.10480041]
[1645174720554,3.7,2943.5,2943.0,1.10480041]
[1645174720753,3.4,2943.5,2943.0,1.10480041]
[1645174720953,3.7,2943.5,2942.7,1.1595]
[1645174721957,0.00181402,2943.2,2942.8,0.95317562]
[1645174722758,3.7,2943.5,2942.8,0.95317562]
[1645174723003,0.00181402,2943.1,2942.8,0.95317562]
[1645174724008,3.7,2943.5,2942.8,0.95317562]
[1645174724410,0.00189284,2943.1,2942.8,0.95317562]
[1645174725210,3.7,2943.5,2942.8,0.95317562]
[1645174725611,0.00189284,2943.1,2942.8,0.95317562]
[1645174726514,0.15754634,2943.1,2942.7,1.1595]
[1645174726756,0.15943918,2943.1,2942.7,1.1595]
[1645174727757,0.45754634,2943.1,2942.7,1.1595]
[1645174727955,0.00187517,2943.0,2942.7,1.1595]
[1645174729465,0.00187517,2943.0,2942.8,1.01655728]
[1645174729861,0.3,2943.4,2943.1,0.00375034]
[1645174730261,3.4,2943.5,2943.1,0.00375034]
[1645174731108,3.4,2943.5,2943.3,0.95336708]
[1645174731522,3.4,2943.5,2943.1,0.00375034]
[1645174731713,3.55722701,2943.5,2943.1,0.00375034]
[1645174732507,3.55722701,2943.5,2943.2,0.97831681]
[1645174732708,3.4,2943.5,2943.2,0.97831681]
[1645174732909,0.00187914,2943.4,2943.2,0.97831681]
[1645174733712,3.4,2943.5,2943.2,0.97831681]
[1645174733713,3.7,2943.5,2943.2,0.97831681]
[1645174733914,0.00187914,2943.4,2943.1,0.00375034]
[1645174734948,4.10923679,2943.5,2943.1,0.00375034]
[1645174735249,0.0018735,2943.4,2943.1,0.00375034]
[1645174735448,1.00526321,2943.4,2943.1,0.00375034]
[1645174735649,0.0018735,2943.4,2943.1,0.00375034]
[1645174736049,4.10923679,2943.5,2943.1,0.00375034]
[1645174736450,0.0018735,2943.4,2943.1,0.00375034]
[1645174736854,1.02786282,2943.4,2943.1,0.00375034]
[1645174737251,1.02598932,2943.4,2943.1,0.00375034]
[1645174737753,1.02786282,2943.4,2943.1,0.00375034]
[1645174738410,4.10923679,2943.5,2943.1,0.00375034]
[1645174738809,0.00187478,2943.4,2943.1,0.00375034]
[1645174740814,0.00187478,2943.4,2943.1,0.27437756]
[1645174742356,0.00187478,2943.4,2943.2,0.27062722]
[1645174742655,3.4,2943.5,2943.2,0.27062722]
[1645174745261,3.4,2943.5,2943.4,1.36437062]
[1645174746907,3.4,2943.5,2943.4,0.27062722]
[1645174747807,3.7,2943.5,2943.4,0.27062722]
[1645174750253,3.4,2943.5,2943.4,0.27062722]
[1645174752754,3.7,2943.5,2943.4,0.27062722]
[1645174755411,4.0,2943.5,2943.4,0.27062722]
[1645174756611,5.15217365,2943.5,2943.4,0.27062722]
[1645174759769,2.50109209,2943.4,2943.1,0.00375034]
[1645174759970,2.90909209,2943.4,2943.1,0.00375034]
[1645174760167,0.40909209,2943.4,2943.1,0.00375034]
[1645174760801,0.5075602,2943.4,2943.1,0.00375034]
[1645174761204,0.40909209,2943.4,2943.1,0.00375034]
[1645174762003,0.50825568,2943.4,2943.1,0.00375034]
[1645174762204,0.50649889,2943.4,2943.1,0.00375034]
[1645174762804,0.40909209,2943.4,2943.1,0.00375034]
[1645174763207,0.50762317,2943.4,2943.1,0.00375034]
[1645174763407,0.00109209,2943.4,2943.1,0.00375034]
[1645174764453,0.00109209,2943.4,2943.2,0.95290298]
[1645174767453,0.00109209,2943.4,2943.1,0.00375034]
[1645174772052,0.408,2943.3,2943.1,0.00375034]
[1645174772250,0.708,2943.3,2943.1,0.00375034]
[1645174772450,0.94442792,2943.2,2943.1,0.00375034]
[1645174777006,1.35242792,2943.2,2943.1,0.00375034]
[1645174777608,0.408,2943.2,2943.1,0.00375034]
[1645174777810,0.60176768,2943.3,2943.1,0.00375034]
[1645174778211,0.3,2943.3,2943.1,0.00375034]
[1645174778412,0.00176768,2943.3,2943.1,0.00375034]
[1645174779251,1.15096209,2943.4,2943.1,0.00375034]
[1645174779452,1.55896209,2943.4,2943.1,0.00375034]
[1645174779653,0.00176768,2943.3,2943.1,0.00375034]
[1645174780553,2.40890209,2943.4,2943.1,0.00375034]
[1645174780756,0.00176768,2943.3,2943.1,0.00375034]
[1645174781555,5.0,2943.2,2943.1,0.00375034]
[1645174781754,5.0,2943.2,2942.0,7.3]
[1645174781755,0.85935107,2942.8,2942.0,7.3]
[1645174781953,0.85017,2942.7,2942.1,1.44993413]
[1645174782155,1.15017,2942.7,2942.1,1.44993413]
[1645174782553,1.45017,2942.7,2942.1,4.94993413]
[1645174782755,1.45017,2942.7,2942.2,1.44993413]
[1645174783004,0.85017,2942.7,2942.2,1.44993413]
[1645174783211,0.85017,2942.7,2942.3,1.44993413]
[1645174783412,0.85017,2942.7,2942.0,7.3]
[1645174783610,0.85017,2942.7,2942.4,1.01807981]
[1645174784209,1.15017,2942.7,2942.4,1.01807981]
[1645174784410,1.45017,2942.7,2942.4,1.01807981]
[1645174784811,0.6,2942.7,2942.5,4.9497144]
[1645174785012,0.6,2942.7,2942.4,1.01807981]
[1645174785013,0.00187523,2943.1,2942.4,1.01807981]
[1645174785211,0.00187523,2943.1,2942.5,1.44971401]
[1645174785411,2.10788,2943.3,2942.5,1.44971401]
[1645174785611,0.00185115,2943.1,2942.5,1.44971401]
[1645174785810,0.00185115,2943.1,2942.4,1.01807981]
[1645174786015,0.85174115,2943.1,2942.5,1.44971936]
[1645174786612,0.84989,2943.1,2942.5,1.44971936]
[1645174786854,0.85174128,2943.1,2942.5,1.44971936]
[1645174787255,1.70176128,2943.1,2942.5,1.44971936]
[1645174787656,1.69991,2943.1,2942.5,1.44971936]
[1645174787857,0.84989,2943.1,2942.5,1.44971936]
[1645174788059,0.85174128,2943.1,2942.5,1.44971936]
[1645174788262,1.70176128,2943.1,2942.5,1.44971936]
[1645174788664,0.85174128,2943.1,2942.5,1.44971936]
[1645174788861,0.84989,2943.1,2942.5,1.44971936]
[1645174789264,0.85174665,2943.1,2942.5,1.44971936]
[1645174789862,0.85174665,2943.1,2942.4,1.01807981]
[1645174790062,0.84989,2943.1,2942.4,1.01807981]
[1645174790503,0.85174665,2943.1,2942.4,1.01807981]
[1645174790703,1.70176665,2943.1,2942.4,1.01807981]
[1645174791312,0.84989,2943.1,2942.4,1.01807981]
[1645174791705,0.85174662,2943.1,2942.4,1.01807981]
[1645174792506,0.84989,2943.1,2942.4,1.01807981]
[1645174792905,0.85174542,2943.1,2942.4,1.01807981]
[1645174793108,4.25174542,2943.1,2942.4,1.01807981]
[1645174793609,4.25174542,2943.1,2942.5,1.44974776]
[1645174793814,4.24989,2943.1,2942.5,1.44974776]
[1645174794010,4.25174542,2943.1,2942.5,1.44974776]
[1645174794460,4.25174542,2943.1,2942.4,1.01807981]
[1645174794863,5.09993,2943.1,2942.4,1.01807981]
[1645174795061,0.408,2943.0,2942.4,1.01807981]
[1645174795261,6.70009,2942.9,2941.8,3.50561507]
[1645174795464,2.10809,2942.9,2941.8,3.50561507]
[1645174795766,0.85012,2942.7,2941.8,3.50561507]
[1645174795961,1.15012,2942.7,2941.8,3.50561507]
[1645174796366,0.84443034,2942.5,2942.0,8.4810098]
[1645174796563,1.55243034,2942.5,2942.0,7.3]
[1645174796761,2.70258034,2942.5,2942.0,7.3]
[1645174797162,2.70258034,2942.5,2942.1,1.44995875]
[1645174797561,2.70258034,2942.5,2942.0,7.3]
[1645174797761,2.70258034,2942.5,2941.8,1.12389442]
[1645174798010,2.70258034,2942.5,2941.9,1.44992816]
[1645174798415,10.39211638,2943.9,2942.0,3.5]
[1645174798416,2.10803,2942.9,2942.0,3.5]
[1645174798617,0.408,2942.9,2942.1,1.61972816]
[1645174798815,0.408,2942.9,2942.2,4.94992816]
[1645174799122,0.00185534,2943.1,2942.3,1.44992816]
[1645174799715,0.408,2943.3,2942.1,3.6698]
[1645174799716,2.10788,2943.3,2942.4,1.44992816]
[1645174799915,0.84999,2942.9,2942.5,1.16221153]
[1645174800318,0.84999,2942.9,2942.1,0.1698]
[1645174800516,0.84999,2942.9,2942.2,1.44979885]
[1645174800718,0.84999,2942.9,2942.3,0.1698]
[1645174800917,0.84999,2942.9,2942.4,1.44979885]
[1645174801319,0.6,2942.8,2942.5,0.1698]
[1645174801518,0.6,2942.8,2942.2,1.31422896]
[1645174801765,0.6,2942.8,2942.3,1.44979838]
[1645174801961,0.6,2942.8,2942.4,0.1698]
[1645174802364,0.6,2942.8,2942.6,0.04502798]
[1645174802564,0.6,2942.8,2942.3,0.1698]
[1645174803767,0.6,2942.8,2942.4,1.44975321]
[1645174803969,0.6,2942.8,2942.5,1.61955321]
[1645174804168,0.6,2942.8,2942.5,0.1698]
[1645174804567,0.6,2942.8,2942.2,1.1698]
[1645174804568,4.0,2942.8,2942.2,1.1698]
[1645174804769,4.0,2942.8,2942.3,6.09071697]
[1645174804971,4.0,2942.8,2942.4,1.61951756]
[1645174805171,4.0,2942.8,2942.4,0.1698]
[1645174805369,4.0,2942.8,2942.6,0.04502798]
[1645174805616,4.0,2942.8,2942.1,3.6698]
[1645174806413,4.0,2942.8,2942.3,0.84044827]
[1645174807015,4.0,2942.8,2942.6,0.04502798]
[1645174807212,4.0,2942.8,2942.1,3.5]
[1645174807412,0.85004,2942.7,2942.1,3.5]
[1645174807612,1.15004,2942.7,2942.0,8.4822]
[1645174807816,1.15004,2942.7,2942.1,3.5]
[1645174808223,1.15004,2942.7,2942.4,0.9999566]
[1645174808421,3.4,2942.8,2942.6,0.04502798]
[1645174808623,1.85366541,2942.8,2942.6,0.04502798]
[1645174808919,0.85177542,2943.1,2942.5,6.0]
[1645174809123,0.0074193,2944.1,2942.7,6.0]
[1645174809375,1.09268475,2944.2,2943.6,1.03340961]
[1645174809576,1.09268475,2944.2,2943.4,0.3003]
[1645174810170,1.09268475,2944.2,2943.6,0.04502798]
[1645174810474,1.09268475,2944.2,2943.2,1.2116]
[1645174810670,0.00430731,2944.6,2943.2,2.19375833]
[1645174810871,0.00223221,2944.5,2943.3,3.5]
[1645174811170,0.1603473,2944.5,2943.3,3.5]
[1645174811374,0.84963,2944.2,2943.3,3.5]
[1645174811572,1.8595473,2944.5,2943.9,0.04502798]
[1645174811774,1.23757539,2944.4,2943.3,3.5]
[1645174811972,0.93757539,2944.4,2943.3,3.5]
[1645174812177,0.00223221,2944.3,2943.3,3.5]
[1645174812574,0.00223221,2944.3,2943.2,2.19375833]
[1645174812775,0.00223221,2944.3,2943.7,1.0954841]
[1645174813017,0.00430731,2944.7,2943.7,1.0954841]
[1645174813221,0.00430731,2944.8,2944.0,0.04502798]
[1645174813422,0.00742217,2944.3,2944.0,0.98182798]
[1645174813624,0.00742217,2944.3,2944.0,1.1066]
[1645174814222,0.9742074,2944.7,2944.2,0.84862283]
[1645174814421,0.9742074,2944.7,2944.0,0.1698]
[1645174814422,0.0019979,2944.3,2944.0,0.1698]
[1645174815522,0.158311,2944.3,2944.0,0.1698]
[1645174815723,0.1603089,2944.3,2944.0,0.1698]
[1645174816123,3.5603089,2944.3,2944.2,0.04502798]
[1645174816323,3.8603089,2944.3,2944.2,0.04502798]
[1645174816523,3.858311,2944.3,2944.2,0.04502798]
[1645174816759,4.158311,2944.3,2944.2,0.04502798]
[1645174817363,3.858311,2944.3,2944.2,0.04502798]
[1645174817763,3.7,2944.3,2944.2,0.04502798]
[1645174818164,3.4,2944.3,2944.2,0.04502798]
[1645174818365,3.7,2944.3,2944.2,0.04502798]
[1645174818767,4.0,2944.3,2944.2,0.04502798]
[1645174819762,4.0,2944.3,2944.2,0.19496752]
[1645174822820,3.7,2944.3,2944.2,0.19496752]
[1645174823019,4.0,2944.3,2944.2,0.19496752]
[1645174829824,3.7,2944.3,2944.2,0.19496752]
[1645174830231,4.0,2944.3,2944.2,0.19496752]
[1645174830625,3.4,2944.3,2944.2,0.19344289]
[1645174830825,3.4,2944.3,2944.2,0.14993954]
[1645174831027,3.4,2944.3,2944.2,0.19344289]
[1645174832077,3.7,2944.3,2944.2,0.19344289]
[1645174832273,4.0,2944.3,2944.2,0.19344289]
[1645174832981,3.7,2944.3,2944.2,0.19344289]
[1645174833177,4.0,2944.3,2944.2,0.19344289]
[1645174833778,4.0,2944.3,2944.2,0.14344289]
[1645174833977,4.0,2944.3,2944.2,0.11847312]
[1645174834378,4.0,2944.3,2944.2,0.14344289]
[1645174836216,3.7,2944.3,2944.2,0.14344289]
[1645174838820,4.0,2944.3,2944.2,0.14344289]
[1645174839864,3.7,2944.3,2944.2,0.14344289]
[1645174844428,3.4,2944.3,2944.2,0.14344289]
[1645174845830,3.7,2944.3,2944.2,0.14344289]
[1645174849273,4.108,2944.3,2944.2,0.14344289]
[1645174849876,4.408,2944.3,2944.2,0.14344289]
[1645174850275,5.25772,2944.3,2944.2,0.14344289]
[1645174851728,5.0,2944.2,2943.2,3.5]
[1645174851933,5.0,2944.2,2943.0,0.1698]
[1645174851934,0.84981,2943.9,2943.0,0.1698]
[1645174852127,0.408,2943.8,2943.1,1.44954457]
[1645174852327,0.408,2943.8,2943.0,3.5]
[1645174852530,0.608,2943.8,2943.1,1.44957462]
[1645174853027,1.01729115,2943.4,2943.0,3.5]
[1645174853230,0.408,2943.3,2943.1,1.44957886]
[1645174853430,0.408,2943.3,2943.2,1.44957886]
[1645174853635,0.708,2943.3,2943.0,1.44957886]
[1645174854034,0.708,2943.3,2942.6,3.6698]
[1645174854035,1.858,2943.3,2942.6,0.1698]
[1645174854266,1.858,2943.3,2942.7,1.44977252]
[1645174854267,2.7081,2943.3,2942.7,1.44977252]
[1645174854667,2.7081,2943.3,2942.6,3.5]
[1645174854868,2.7081,2943.3,2942.7,1.44975761]
[1645174855074,2.6581,2943.3,2942.8,2.45282917]
[1645174855266,2.6581,2943.3,2942.8,1.00307156]
[1645174855468,0.0018518,2943.2,2942.8,1.00307156]
[1645174855667,0.408,2943.1,2942.8,1.00307156]
[1645174855867,0.408,2943.1,2942.2,3.6698]
[1645174856067,0.708,2943.1,2942.2,3.6698]
[1645174856270,0.85004,2943.0,2942.2,0.1698]
[1645174856467,0.85004,2943.0,2942.1,1.1761]
[1645174856468,0.408,2942.9,2942.1,1.1761]
[1645174856869,0.708,2942.9,2942.2,1.11870027]
[1645174857269,1.008,2942.9,2942.2,1.11870027]
[1645174857468,1.008,2942.9,2942.3,1.44988165]
[1645174857668,1.008,2942.9,2942.1,1.1761]
[1645174857870,0.85012,2942.7,2942.2,1.44986406]
[1645174858130,0.408,2942.6,2942.2,1.44986406]
[1645174858329,0.86207074,2942.5,2942.2,1.44986406]
[1645174858528,0.3,2942.6,2942.5,0.68444441]
[1645174858730,0.408,2942.7,2942.5,0.68444441]
[1645174859131,0.708,2942.7,2942.5,0.68444441]
[1645174859731,1.008,2942.7,2942.5,0.68444441]
[1645174860132,2.04056468,2942.7,2942.5,0.68444441]
[1645174860532,1.028,2942.6,2941.9,1.1802]
[1645174860733,1.028,2942.6,2942.0,1.4499626]
[1645174861132,1.028,2942.6,2941.9,0.91964511]
[1645174861335,1.028,2942.4,2941.9,0.91964511]
[1645174861538,1.028,2942.0,2941.9,0.91964511]
[1645174861766,1.028,2942.0,2941.7,14.32854597]
[1645174861967,1.028,2942.0,2941.7,7.31024597]
[1645174861968,1.028,2941.9,2941.7,7.31024597]
[1645174862364,1.028,2941.9,2941.7,7.3]
[1645174862965,4.428,2941.9,2941.7,7.3]
[1645174863170,4.428,2941.9,2941.2,0.01280946]
[1645174863367,1.028,2941.7,2941.3,1.45022933]
[1645174863567,1.436,2941.6,2941.3,1.45022933]
[1645174863766,1.436,2941.6,2940.8,8.67]
[1645174863971,1.436,2941.6,2940.9,1.45030675]
[1645174864368,1.028,2941.3,2940.9,1.45030675]
[1645174864566,1.028,2941.2,2940.9,1.45030675]
[1645174865620,1.028,2941.2,2940.8,7.3]
[1645174865818,1.328,2941.2,2940.8,7.3]
[1645174866222,1.328,2940.9,2940.8,7.3]
[1645174866623,1.628,2940.9,2940.8,8.75026429]
[1645174866824,1.328,2940.9,2940.8,8.75026429]
[1645174867422,1.328,2940.9,2940.8,7.3]
[1645174867722,1.628,2940.9,2940.8,7.3]
[1645174867923,1.628,2940.9,2940.7,0.00256066]
[1645174868126,1.436,2940.8,2940.7,0.00256066]
[1645174868329,1.436,2940.8,2940.0,7.3]
[1645174868529,1.436,2940.8,2940.7,0.0025607]
[1645174869562,1.436,2940.8,2940.3,1.45047429]
[1645174869763,1.436,2940.8,2940.6,0.00324235]
[1645174870764,1.436,2940.8,2940.4,1.45037823]
[1645174870965,1.436,2940.8,2940.6,0.00309096]
[1645174871969,1.436,2940.8,2940.3,1.45037369]
[1645174872265,1.436,2940.8,2940.6,0.00299368]
[1645174872667,1.028,2940.7,2940.6,0.00299368]
[1645174873015,1.328,2940.7,2940.6,0.00299368]
[1645174873221,1.328,2940.7,2940.2,1.45044404]
[1645174873429,1.628,2940.7,2940.5,0.00299372]
[1645174873622,2.036,2940.7,2940.5,0.00299372]
[1645174874023,5.436,2940.7,2940.5,0.00299372]
[1645174874421,5.436,2940.7,2940.0,10.8]
[1645174874422,1.028,2940.2,2940.0,10.8]
[1645174874625,1.028,2940.2,2940.0,7.26197686]
[1645174874820,1.028,2940.2,2940.0,0.01197686]
[1645174874821,1.028,2940.1,2940.0,0.01197686]
[1645174875624,1.028,2940.1,2939.6,13.2029]
[1645174875822,1.028,2940.0,2939.9,0.00290248]
[1645174876025,1.328,2940.0,2939.9,0.00290248]
[1645174876622,1.736,2940.0,2939.9,0.00290248]
[1645174876875,1.028,2939.8,2939.7,0.0055929]
[1645174877278,1.628,2939.8,2939.7,0.0055929]
[1645174877475,2.036,2939.8,2939.7,0.0055929]
[1645174878681,0.708,2939.8,2939.7,0.0055929]
[1645174880284,1.008,2939.8,2939.7,0.0055929]
[1645174881920,1.008,2939.8,2939.6,0.00288994]
[1645174881921,2.7101122,2939.8,2939.6,0.00288994]
[1645174882120,3.5611322,2939.8,2939.6,0.00288994]
[1645174882720,3.5611322,2939.8,2938.9,0.0055929]
[1645174882921,0.9791753,2939.1,2938.9,0.0055929]
[1645174883323,1.2791753,2939.1,2938.9,0.0055929]
[1645174884126,0.3,2939.0,2938.9,0.0084835]
[1645174884384,0.708,2939.0,2938.9,0.0084835]
[1645174885193,0.708,2939.0,2938.9,0.0055929]
[1645174885793,3.808,2939.0,2938.9,0.0055929]
[1645174886493,1.8305662,2939.5,2939.1,0.1281]
[1645174886698,0.10713235,2939.7,2939.4,6.0]
[1645174886895,0.10713235,2939.7,2939.5,0.0055929]
[1645174887093,0.03157014,2939.6,2939.5,0.0055929]
[1645174888824,0.03157014,2939.6,2939.3,0.0055929]
[1645174889623,0.40614117,2939.6,2939.3,0.0055929]
[1645174890127,0.40614117,2939.6,2939.3,0.00848293]
[1645174890329,0.40614117,2939.6,2939.3,1.00848293]
[1645174890724,0.4807122,2939.6,2939.3,0.00848293]
[1645174891126,0.4807122,2939.6,2939.3,0.0055929]
[1645174891627,0.4807122,2939.6,2939.3,0.00848293]
[1645174891865,0.4807122,2939.6,2939.3,1.80913293]
[1645174891866,0.507179,2939.6,2939.3,1.80913293]
[1645174892064,0.507179,2939.6,2939.4,3.5]
[1645174892270,0.507179,2939.6,2939.2,3.67]
[1645174892467,0.507179,2939.6,2939.2,3.5]
[1645174892968,0.507179,2939.6,2939.1,2.7826]
[1645174892969,0.58175003,2939.6,2939.1,2.7826]
[1645174893169,0.58175003,2939.6,2939.2,1.45090974]
[1645174893370,1.08044319,2939.5,2939.2,2.45090974]
[1645174893569,0.58175003,2939.6,2939.2,3.5]
[1645174893770,0.60821683,2939.6,2939.2,4.50298561]
[1645174894171,0.60821683,2939.6,2939.3,1.45091214]
[1645174894372,0.60821683,2939.6,2939.2,0.00298561]
[1645174894574,0.60821683,2939.6,2939.2,1.45393999]
[1645174894772,0.68278786,2939.6,2939.1,2.7826]
[1645174894972,0.68278786,2939.6,2939.2,0.00298561]
[1645174895372,1.57125379,2939.6,2939.2,0.00298561]
[1645174896020,1.59772059,2939.6,2939.1,3.5]